Cogmind - Beta 12 *** ADVENTURER MODE // 2023.07.03 @ 22:26:40 Player: Blade Result: Destroyed by P-60 Hacker with Shock Rifle Performance ------------- Evolutions (4) 2000 Regions Visited (7) 1400 Robots Destroyed (6) 30 Value Destroyed (203) 203 Prototype IDs (24) 480 Alien Tech Used (0) 0 Bonus (315) 315 TOTAL SCORE: 4428 Bonus ------- Follower Combat Kills 83 Aligned with FarCom 300 Friendly Fire -68 Cogmind --------- Core Integrity 0/850 Matter 177/300 Energy 102/525 System Corruption 6% Temperature Warm (100) Movement Core (100) Ox1 Location -6/Factory Parts ------- > --- POWER (2) -------- Light Ion Engine Angular Momentum Engine > --- PROPULSION (5) --- (None) > --- UTILITY (6) ------ Compact Battery Advanced Weight Redist. System > --- WEAPON (2) ------- Heavy Laser > --- INVENTORY (5) ---- Transmission Jammer Shock Absorption System Peak State ------------ > --- POWER ------------ Nuclear Core Light Angular Momentum Engine > --- PROPULSION ------- Compact Wheel Compact Wheel Compact Wheel Improved Flight Unit > --- UTILITY ---------- Medium Storage Unit Sensor Array Transmission Jammer ECM Suite Advanced ECM Suite Layered Light Armor Plating > --- WEAPON ----------- Assault Rifle > --- INVENTORY -------- Light Ion Engine Fission Core Compact Wheel Compact Wheel Advanced Weight Redist. System Transmission Jammer Shock Absorption System Medium Laser [Rating: 32] Favorites ----------- Power Light Ion Engine Engine Light Ion Engine Power Core Nuclear Core Propulsion Compact Wheel Leg Aluminum Leg Wheel Compact Wheel Hover Unit Gravmag Array Flight Unit Improved Flight Unit Utility Sensor Array Device Sensor Array Storage Medium Storage Unit Processor Modified TNC Protection Layered Light Armor Plating Weapon Assault Rifle Energy Gun Medium Laser Ballistic Gun Assault Rifle Launcher Grenade Launcher Special Weapon Mining Laser Build | -11 -10 -10 -10 -9 -8 -7 -6 ------- Run | Jun Mat Min Exi Min Mat Fac Fac Slots Evolved 8 | . . . . . 4 2 2 Power 1 | . . . . . . 1 . Propulsion 3 | . . . . . 2 . 1 Utility 4 | . . . . . 2 1 1 Weapon . | . . . . . . . . Parts Attached 57 | 8 1 6 1 13 2 12 14 Power 11 | 3 . . . 1 . 2 5 Engine 10 | 3 . . . 1 . 1 5 Core 1 | . . . . . . 1 . Reactor . | . . . . . . . . Propulsion 23 | 2 1 5 . 6 . 6 3 Treads . | . . . . . . . . Leg 7 | 2 1 2 . 2 . . . Wheel 8 | . . . . 2 . 4 2 Hover 1 | . . . . . . . 1 Flight 7 | . . 3 . 2 . 2 . Utility 13 | 1 . . 1 2 1 4 4 Device 8 | . . . . 1 1 4 2 Storage 3 | 1 . . . 1 . . 1 Processor 1 | . . . 1 . . . . Hackware . | . . . . . . . . Protection 1 | . . . . . . . 1 Artifact . | . . . . . . . . Weapon 10 | 2 . 1 . 4 1 . 2 Energy Gun 4 | 1 . . . 1 . . 2 Energy Cannon . | . . . . . . . . Ballistic Gun 3 | 1 . 1 . 1 . . . Ballistic Cannon . | . . . . . . . . Launcher 1 | . . . . 1 . . . Special Weapon 2 | . . . . 1 1 . . Impact Weapon . | . . . . . . . . Slashing Weapon . | . . . . . . . . Piercing Weapon . | . . . . . . . . Special Melee Weapon . | . . . . . . . . Unidentified Prototypes 2 | . . . 1 . . 1 . Parts Lost 23 | . . . . 8 . . 15 Power 4 | . . . . 1 . . 3 Propulsion 11 | . . . . 4 . . 7 Utility 4 | . . . . 1 . . 3 Weapon 4 | . . . . 2 . . 2 Highest Loss Streak 9 | . . . . 7 . . 9 To Critical Strikes . | . . . . . . . . Average Slot Usage (%) 77 | . 85 85 90 79 65 71 74 Engine 7 | . 14 14 14 2 9 6 5 Core 2 | . . . . . . 2 4 Leg 9 | . 28 27 28 5 18 7 . Wheel 10 | . . . . 16 . 10 16 Flight 3 | . . . . . . 3 5 Device 14 | . . . . 9 11 20 21 Storage 8 | . 14 14 14 14 9 7 5 Protection 1 | . . . . . . . 4 Energy Gun 5 | . 14 14 14 11 1 . 2 Ballistic Gun 7 | . 14 14 14 2 9 7 4 Special Weapon 1 | . . . . 11 7 3 . Naked Turns 100 | . . . . . . . 100 Heaviest Build 41 | 13 11 11 11 18 19 29 41 Greatest Support 48 | 20 20 20 20 23 23 48 48 Greatest Overweight (x) 9 | . . . . . . 3 9 Average Overweight (x) . | . . . . . . . . Largest Inventory Capacity 10 | 8 8 8 8 10 10 10 10 Average Capacity 8 | 7 8 8 8 8 10 10 9 Most Carried 8 | 2 4 6 7 6 5 8 8 Average Carried 5 | 1 2 5 6 1 1 6 6 Final Capacity 10 | 8 8 8 8 10 10 10 5 Final Carried 8 | 2 4 6 6 1 5 8 2 Class Distribution -------------------- 51% | Mutant 30% | Infiltrator-Mutant 13% | Infiltrator-Skirmisher 4% | Skirmisher Dominant Class ---------------- Mutant | -10/Materials Mutant | -10/Mines Mutant | -10/Exiles Skirmisher | -9/Mines Mutant | -8/Materials Mutant | -7/Factory Infiltrator-Mutant | -6/Factory Resources | -11 -10 -10 -10 -9 -8 -7 -6 ----------- Run | Jun Mat Min Exi Min Mat Fac Fac Matter Collected 590 | 220 67 52 . 45 . 1 205 Remotely . | . . . . . . . . Salvage Created 265 | . 92 . . 66 . . 107 Parts 15 | . 3 . . 6 . . 6 Haulers Intercepted . | . . . . . . . . Recyclers Shooed 1 | . . 1 . . . . . Parts Field Recycled . | . . . . . . . . Retrieved Matter . | . . . . . . . . Parts Self-Destructed . | . . . . . . . . Prevented . | . . . . . . . . Kills | -11 -10 -10 -10 -9 -8 -7 -6 ------- Run | Jun Mat Min Exi Min Mat Fac Fac Combat Hostiles Destroyed 7 | . 2 . . 3 . . 2 Guns 4 | . 2 . . . . . 2 AOE 3 | . . . . 3 . . . Classes Destroyed 6 | . 1 . . 3 . . 2 Worker 1 | . . . . 1 . . . Tunneler 1 | . . . . 1 . . . Grunt 2 | . 2 . . . . . . Sentry 1 | . . . . . . . 1 Programmer 1 | . . . . . . . 1 Assembled 3 | . . . . 3 . . . Best Kill Streak 3 | . 2 . . 3 . . 1 Combat Bots Only 3 | . 2 . . 3 . . 1 Max Kills in Single Turn 3 | . 1 . . 3 . . 1 Gunslinging . | . . . . . . . . Exploded 3 | . . . . 3 . . . Melee . | . . . . . . . . Uniques/NPCs Destroyed . | . . . . . . . . Combat | -11 -10 -10 -10 -9 -8 -7 -6 -------- Run | Jun Mat Min Exi Min Mat Fac Fac Damage Taken 2787 | . 131 . . 537 . 83 2036 Core 1035 | . 30 . . 105 . 41 859 Absorbed by Shields . | . . . . . . . . Core Remaining (%) 85 | 100 . . . 46 100 94 . Volleys Fired 66 | . 7 . . 19 10 5 25 Largest 2 | . 2 . . 2 1 1 2 Hottest 150 | . 70 . . 150 100 100 70 Shots Fired 87 | . 14 . . 24 10 5 34 Gun 69 | . 14 . . 19 . 2 34 Cannon . | . . . . . . . . Launcher 3 | . . . . 3 . . . Special 15 | . . . . 2 10 3 . Kinetic 23 | . 7 . . 5 . 2 9 Thermal 61 | . 7 . . 16 10 3 25 Explosive 3 | . . . . 3 . . . Electromagnetic . | . . . . . . . . Robot Hit Streak 19 | . 11 . . 5 . 1 19 Robot Miss Streak 3 | . 3 . . 2 . 1 1 Penetration Max . | . . . . . . . . Secondary Targets . | . . . . . . . . Shots Hit Robots 52 | . 11 . . 14 . 1 26 Core Hits 29 | . 5 1 . 16 . . 7 Critical Kills . | . . . . . . . . Critical Parts Destroyed . | . . . . . . . . Critical Strikes . | . . . . . . . . Melee Attacks . | . . . . . . . . Impact . | . . . . . . . . Slashing . | . . . . . . . . Piercing . | . . . . . . . . Sneak Attacks . | . . . . . . . . Combat Hostiles . | . . . . . . . . Follow-up Attacks . | . . . . . . . . Damage Inflicted 1016 | . 112 2 . 403 . 15 484 Guns 722 | . 112 . . 142 . 13 455 Cannons . | . . . . . . . . Explosions 261 | . . . . 261 . . . Melee . | . . . . . . . . Ramming 33 | . . 2 . . . 2 29 Kinetic 201 | . 51 . . 30 . 13 107 Thermal 521 | . 61 . . 112 . . 348 Explosive 261 | . . . . 261 . . . Electromagnetic . | . . . . . . . . Impact . | . . . . . . . . Slashing . | . . . . . . . . Piercing . | . . . . . . . . Highest Corruption 5 | . . . . . . . 5 Average Corruption 1 | . . . . . . . 1 Corruption Purged . | . . . . . . . . Corruption Blocked . | . . . . . . . . Effects 2 | . . . . . . . 2 Matter Fused 1 | . . . . . . . 1 Energy Discharges 1 | . . . . . . . 1 Overload Shots . | . . . . . . . . Overflow Damage . | . . . . . . . . Projectiles . | . . . . . . . . Explosions . | . . . . . . . . Melee . | . . . . . . . . Knockbacks . | . . . . . . . . Impact . | . . . . . . . . Kinetic . | . . . . . . . . Secondary . | . . . . . . . . Self-Inflicted Damage 39 | . . . . 24 . 1 14 Shots 1 | . . . . 1 . . . Rammed 7 | . . . . . . 1 6 Targets Rammed 8 | . . 1 . . . 1 6 Kicked 1 | . . 1 . . . . . Crushed . | . . . . . . . . Highest Temperature 164 | . 164 . . 25 . . 129 Average Temperature 46 | . 89 . . 11 . . 40 Received Heat Transfer 1049 | . 99 . . 41 . 6 903 Siege Activations . | . . . . . . . . Robots Corrupted . | . . . . . . . . Combat Hostiles . | . . . . . . . . Parts Fried . | . . . . . . . . Impact Corruptions . | . . . . . . . . Robots Melted . | . . . . . . . . Combat Hostiles . | . . . . . . . . Parts Melted 4 | . . . . . . . 4 Heat Transferred 1184 | . 185 . . 333 . . 666 Parts Sabotaged . | . . . . . . . . Parts Stolen . | . . . . . . . . Parts Stripped . | . . . . . . . . Power Chain Reactions . | . . . . . . . . Missiles Intercepted . | . . . . . . . . Alert | -11 -10 -10 -10 -9 -8 -7 -6 ------- Run | Jun Mat Min Exi Min Mat Fac Fac Peak Influence 115 | . 65 95 . 15 66 60 115 Initial 25 | . . 21 . . 3 25 25 Average 29 | . 41 73 . 4 9 27 28 Maximum Alert Level . | . . . . . . . . Low Security (%) 100 | 100 100 100 . 100 100 100 100 Level 1 . | . . . . . . . . Level 2 . | . . . . . . . . Level 3 . | . . . . . . . . Level 4 . | . . . . . . . . Level 5 . | . . . . . . . . High Security . | . . . . . . . . Max Security . | . . . . . . . . Squads Dispatched 7 | . . . . . . . 7 Investigation 3 | . . . . . . . 3 Extermination 3 | . . . . . . . 3 Reinforcement 1 | . . . . . . . 1 Assault . | . . . . . . . . Garrison . | . . . . . . . . Intercept . | . . . . . . . . Searches Triggered . | . . . . . . . . Construction Impeded . | . . . . . . . . Haulers Reinforced . | . . . . . . . . Active Scanning Responses . | . . . . . . . . Cargo Convoy Interrupts . | . . . . . . . . Stealth | -11 -10 -10 -10 -9 -8 -7 -6 --------- Run | Jun Mat Min Exi Min Mat Fac Fac Distress Signals . | . . . . . . . . Communications Jammed 32 | . . . . . . . 32 Distress Signals 32 | . . . . . . . 32 Times Spotted 71 | . 4 2 . 22 3 5 35 Peak Tracking Total 20 | . 2 2 . 20 3 2 10 Tactical Retreats 9 | . . . . 1 . 1 7 Traps | -11 -10 -10 -10 -9 -8 -7 -6 ------- Run | Jun Mat Min Exi Min Mat Fac Fac Traps Triggered 6 | . . . . . . 2 4 Indirectly . | . . . . . . . . Trap Hack Attempts . | . . . . . . . . Triggered . | . . . . . . . . Disarmed . | . . . . . . . . Reprogrammed . | . . . . . . . . Reused . | . . . . . . . . Traps Extracted . | . . . . . . . . Installed . | . . . . . . . . Triggered . | . . . . . . . . Machines | -11 -10 -10 -10 -9 -8 -7 -6 ---------- Run | Jun Mat Min Exi Min Mat Fac Fac Machines Disabled . | . . . . . . . . Max in Single Turn . | . . . . . . . . Machines Repaired . | . . . . . . . . Machines Sabotaged . | . . . . . . . . Overloaded Fab Kills . | . . . . . . . . Hacking | -11 -10 -10 -10 -9 -8 -7 -6 --------- Run | Jun Mat Min Exi Min Mat Fac Fac Machines Accessed 14 | . 2 . 3 . . 4 5 Terminals 8 | . 2 . . . . 2 4 Fabricators . | . . . . . . . . Repair Stations . | . . . . . . . . Recycling Units 3 | . . . . . . 2 1 Scanalyzers . | . . . . . . . . Garrison Access . | . . . . . . . . Total Hacks 41 | . 7 . 18 . . 5 11 Successful 26 | . 2 . 18 . . 4 2 Failed 15 | . 5 . . . . 1 9 Catastrophic 4 | . 1 . . . . . 3 Database Lockouts . | . . . . . . . . Manual 1 | . . . 1 . . . . Terminals 19 | . 7 . . . . 3 9 Fabricators . | . . . . . . . . Repair Stations . | . . . . . . . . Recycling Units 4 | . . . . . . 2 2 Scanalyzers . | . . . . . . . . Garrison Access . | . . . . . . . . Terminal Hacks 24 | . 2 . 18 . . 2 2 Record 18 | . . . 17 . . . 1 Level Access Points 1 | . . . . . . 1 . Alert Level 2 | . 1 . . . . 1 . Recall Reinforcements 1 | . . . . . . . 1 Zone Layout 1 | . 1 . . . . . . EX-Prototype ID Bank 1 | . . . 1 . . . . Fabricator Hacks . | . . . . . . . . Repair Station Hacks . | . . . . . . . . Recycling Unit Hacks 2 | . . . . . . 2 . Report Inventory 2 | . . . . . . 2 . Scanalyzer . | . . . . . . . . Garrison Access Hacks . | . . . . . . . . Unauthorized Hacks . | . . . . . . . . Terminals . | . . . . . . . . Fabricators . | . . . . . . . . Repair Stations . | . . . . . . . . Recycling Units . | . . . . . . . . Scanalyzers . | . . . . . . . . Garrison Access . | . . . . . . . . Data Cores Recovered . | . . . . . . . . Used . | . . . . . . . . Hacking Detections 10 | . 2 . . . . 3 5 Full Trace Events 2 | . . . . . . . 2 Feedback Events . | . . . . . . . . Feedback Blocked . | . . . . . . . . Robot Schematics Acquired . | . . . . . . . . Robots Built . | . . . . . . . . Authchips . | . . . . . . . . Time . | . . . . . . . . Total Robot Build Rating . | . . . . . . . . Part Schematics Acquired . | . . . . . . . . Parts Built . | . . . . . . . . Authchips . | . . . . . . . . Time . | . . . . . . . . Total Part Build Rating . | . . . . . . . . Parts Repaired . | . . . . . . . . Time . | . . . . . . . . Parts Recycled . | . . . . . . . . Recycled Matter . | . . . . . . . . Retrieved Matter . | . . . . . . . . Retrieved Components . | . . . . . . . . Parts Scanalyzed . | . . . . . . . . Part Schematics Acquired . | . . . . . . . . Parts Damaged . | . . . . . . . . Bothacking | -11 -10 -10 -10 -9 -8 -7 -6 ------------ Run | Jun Mat Min Exi Min Mat Fac Fac Used RIF Installer . | . . . . . . . . Robots Hacked . | . . . . . . . . Non-combat . | . . . . . . . . Combat . | . . . . . . . . Robot Hacks Applied . | . . . . . . . . Relay Couplers Released . | . . . . . . . . Fabnet Peak Effective % . | . . . . . . . . Robots Rewired . | . . . . . . . . Allies Hacked . | . . . . . . . . Hacks Repelled . | . . . . . . . . Allies | -11 -10 -10 -10 -9 -8 -7 -6 -------- Run | Jun Mat Min Exi Min Mat Fac Fac Total Allies 5 | . . 3 . 2 . . . Largest Group 3 | . . 3 3 3 2 . . Highest-Rated Group 45 | . . 40 40 45 45 . . Highest-Rated Ally 31 | . . 16 16 31 31 . . Total Orders 6 | . . 6 . . . . . ROAM 3 | . . 3 . . . . . FOLLOW 3 | . . 3 . . . . . Ally Attacks 16 | . . 4 . 9 3 . . Total Damage 189 | . . 45 . 90 54 . . Kills 7 | . . 3 . 2 2 . . Allies Corrupted 1 | . . . . 1 . . . Allies Melted . | . . . . . . . . Intel | -11 -10 -10 -10 -9 -8 -7 -6 ------- Run | Jun Mat Min Exi Min Mat Fac Fac Robot Analysis Total . | . . . . . . . . Derelict Logs Recovered 2 | . . 1 . 1 . . . Drone Launches . | . . . . . . . . Drone Recoveries . | . . . . . . . . Exploration | -11 -10 -10 -10 -9 -8 -7 -6 ------------- Run | Jun Mat Min Exi Min Mat Fac Fac Turns Passed 4251 | 98 152 383 519 314 157 778 1850 Spaces Moved 3093 | 75 108 298 430 275 92 626 1189 Core 211 | 8 . . . . . . 203 Treads . | . . . . . . . . Legs 1298 | 67 108 298 430 45 92 258 . Wheels 1268 | . . . . 230 . 362 676 Hover 276 | . . . . . . . 276 Flight 40 | . . . . . . 6 34 Fastest Speed 50 | 50 120 120 120 80 120 100 50 Average Speed 100 | 112 120 120 120 86 120 110 82 Slowest Speed 500 | 120 120 120 120 120 120 250 500 Overloaded Moves . | . . . . . . . . Propulsion Burnouts . | . . . . . . . . Robots Hopped . | . . . . . . . . Cave-ins Triggered . | . . . . . . . . Exploration Rate (%) 36 | 5 20 62 72 82 11 16 27 Regions Visited 7 Branch Regions 3 Pre-discovered Areas . | . . . . . . . . Known Exits Taken 2 | . . . . . 1 1 . Unknown Exits Taken 5 | 1 1 1 1 1 . . . Scrap Searched 2 | . . 1 . 1 . . . Spaces Dug 10 | . . . . . 10 . . Terrain Destroyed 33 | . . . . 23 10 . . Melee . | . . . . . . . . Projectile 11 | . . . . 1 10 . . AOE 22 | . . . . 22 . . . Terrain Rammed . | . . . . . . . . Walls Destroyed . | . . . . . . . . Machines Disabled . | . . . . . . . . Actions | -11 -10 -10 -10 -9 -8 -7 -6 --------- Run | Jun Mat Min Exi Min Mat Fac Fac Total 4115 | 85 118 321 433 323 108 701 2026 Wait 844 | . . 14 . 8 . 43 779 Move 3086 | 74 107 297 429 274 91 625 1189 Hop . | . . . . . . . . Pick Up 36 | 2 2 2 1 6 5 11 7 Fast Attach 6 | 6 . . . . . . . Attach 34 | . . 1 1 8 1 11 12 Detach 5 | . . 1 . . . 3 1 Swap 17 | 2 1 5 . 5 1 1 2 Drop 11 | 1 1 . . 3 . 1 5 Fire 66 | . 7 . . 19 10 5 25 Melee . | . . . . . . . . Ram 7 | . . . . . . 1 6 Kick 1 | . . 1 . . . . . Crush . | . . . . . . . . Escape Stasis . | . . . . . . . . Rewire 2 | . . . 2 . . . . Trap . | . . . . . . . . Miscellaneous . | . . . . . . . . Route ------- -11/Junkyard -10/Materials -10/Mines (discovered 2 exits: [*Mat] / *Exi) -10/Exiles -9/Mines (discovered 2 exits: [*Mat x2]) -8/Materials (discovered 2 exits: *Fac / [*Sto]) -7/Factory (discovered 4 exits: *Fac x4) -6/Factory History --------- Turn | Location | Event 6 | -11/Junkyard | Discovered new exit (range 16) 99 | -11/Junkyard | Entered Materials 228 | -10/Materials | Discovered new exit (range 8) 251 | -10/Materials | Entered Mines 295 | -10/Mines | Assisted by bots powering up and referring to "LRC-V3" 307 | -10/Mines | Build established: Mutant 395 | -10/Mines | Discovered new exit (range 11) 581 | -10/Mines | Learned Materials non-interactive machine intel 626 | -10/Mines | Deemed a non-threat by the Exiles lab entrance 627 | -10/Mines | Discovered new exit (range 5) 634 | -10/Mines | Entered Exiles 634 | -10/Exiles | Accompanied by 3 allies 676 | -10/Exiles | Met 8R-AWN 702 | -10/Exiles | Met EX-HEX 806 | -10/Exiles | Met EX-DEC 897 | -10/Exiles | Met EX-BIN 929 | -10/Exiles | Aligned with FarCom system 930 | -10/Exiles | Given EX-Vault access code 966 | -10/Exiles | Opened EX-Vault 974 | -10/Exiles | Found Prototype Processor 975 | -10/Exiles | Identified Modified TNC 1017 | -10/Exiles | Exiles lab attacked by MAIN.C 1129 | -10/Exiles | Discovered new exit (range 15) 1153 | -10/Exiles | Left Exiles lab with Modified TNC 1153 | -10/Exiles | Entered Mines 1153 | -9/Mines | Accompanied by 3 allies 1154 | -9/Mines | Assembled infested the area 1159 | -9/Mines | Assisted by a Guerilla fighting off Assembled 1209 | -9/Mines | Core integrity fell below 50% 1234 | -9/Mines | Lost 7 parts (4n1u2w) 1310 | -9/Mines | Discovered new exit (range 13) 1386 | -9/Mines | Discovered new exit (range 11) 1429 | -9/Mines | Learned location of 1 exit from Materials 1467 | -9/Mines | Entered Materials 1467 | -8/Materials | Accompanied by 2 allies 1467 | -8/Materials | Evolved 4 slots: Propulsion x2, Utility x2 1467 | -8/Materials | Discovered new exit (range 5) 1468 | -8/Materials | Identified exit to Factory 1469 | -8/Materials | Loaded intel: 29 non-interactive machine locations 1472 | -8/Materials | Led the pair of lost Derelicts to an unsafe place 1624 | -8/Materials | Entered Factory 1624 | -7/Factory | Evolved 2 slots: Power x1, Utility x1 2325 | -7/Factory | Identified exit to Factory 2381 | -7/Factory | Build established: Infiltrator-Mutant 2402 | -7/Factory | Entered another Factory area 2402 | -6/Factory | Evolved 2 slots: Propulsion x1, Utility x1 3604 | -6/Factory | Build established: Infiltrator-Skirmisher 3959 | -6/Factory | Lost 9 parts (2p2n3u2w) 3971 | -6/Factory | Core integrity fell below 50% 4006 | -6/Factory | Lost 3 parts (1p2n) 4167 | -6/Factory | Core integrity fell below 20% 4252 | -6/Factory | Destroyed by P-60 Hacker with Shock Rifle Last Messages --------------- 04110_ K-01 Serf cleans the Power Conduit. 04118_ Gravmag Array destroyed. 04122_ Slammed into K-01 Serf. 04123_ Slammed into R-10 Processor. 04130_ Connecting with Terminal... >>Recall(Reinforcements) Establishing remote squad link... Recalled reinforcement squad LIDT1W4XW6. 04131_ Triggered Blade Trap. 04131_ Massive razor-sharp blades shoot up from within the floor. 04132_ U-05 Engineer lays Concrete. 04152_ ALERT: Rogue bot located, Programmers report to Factory Zone 4Y. 04198_ System corrupted: Energy discharge (-21). 04213_ Connecting with Repair Station... 04213_ K-01 Serf cleans the Fusion Modulator. 04220_ Acquired Com. Battery. 04222_ K-01 Serf cleans the Fusion Modulator. 04227_ Acquired Hvy. Laser. 04251_ System corrupted: Matter fused (-7). 04252_ Destroyed Gravmag System. Map ----- +----------------------------------------------------+ | ???????????????????????????????????????? | | ???????????????????????????????????????? | | ???????????????????????????????????????? | | ???????????????????????????????????????? | | ???????????????????????????????????????? | | ???????????????????????????????????????? | | ???????????????????????????????????????? | | ???????????????????????????????????????? | | ???????????????????????????????????????? | | ???????????????????????????????????????? | | ???????????????????????????????????????? | | ???????????????????????????????????????? | | ?????????#?????????????????????????????? | | ???????? #?????????????????????????????? | | ?????? #?????????????????????????????? | | ????? #?????????????????????????????? | | #### #?????????????????????????????? | | #?????????????????????????????? | | #?????????????????????????????? | | +?????????????????????????????? | | #?????????????????????????????? | | #?????????????????????????????? | | ##########??????????##############?????? | | ????????????????????# #?????? | | ????????????????????# #?????? | | ????????????????????# @ #?????? | | ?????#########??????# #?????? | | ### ???????# """pp #?????? | | + """" ??????????# """ #?????? | | # """" ??????????# """ #?????? | | #? """" " " #????# """ #?????? | | # """" #????# """ """ #?????? | | # ??????# """ R" #?????? | | + """" ??????????# """ """ #?????? | | # """" ??????????# #?????? | | # """" ??????????#######/######?????? | | #? """"???????????????# +????????? | | #? ???????????????# #????????? | | #?? ??????????????# #????????? | | # #??##### ?????????????# #????????? | | # #?????????????????????# #????????? | | # #?????????????????????# #????????? | | #?????????????????????# #????????? | | #?????????????????????# #????????? | | #?????????????????????# #????????? | | #?????????????????????+ +????????? | | #?????????????????????# #????????? | | #?????????????????????# #????????? | | #?????????????????????# #????????? | | #?????????????????????# #????????? | +----------------------------------------------------+ Best States ------------- Heat Dissipation 37 Energy Generation 27 Energy Capacity 525 Matter Stores 300 Matter Capacity 300 Sight Range 16 Robot Scan Range 14 Terrain Scan Density 10 ECM Strength 3 Jamming Range 12 Additional Mass Support 9 Armor Coverage 150 Resistance: KI 20 Resistance: TH 20 Resistance: EX 45 Resistance: EM 20 Resistance: I 20 Resistance: S 20 Resistance: P 20 Evasion (%) 60 Offensive Hacking 10 Item Schematics ----------------- None Robot Schematics ------------------ None Fabricated ------------ Nothing Alien Tech Used ----------------- None Achievements -------------- No Signal Total Silence Challenges ------------ None Game ------ Seed ZioniteTachyonMachine Manual? 0 Play Time 00:44:47 Cumulative 13.3 hours Start 2023.07.03 @ 21:43:08 End 2023.07.03 @ 22:26:40 Sessions 1 Manual Loads 0 Difficulty Adventurer Special Mode None Game No. 15 Rogue 0 Adventurer 15 Explorer 0 Win Type - Total 0 Types 0/0/0/0/0/0/0/0/0 Lore% 18 Gallery% 18 Achievement% 19 Wizard Run 0 Options --------- ASCII 0 Keyboard 0 Movement Arrows Keybinds 0 Fullscreen 1 Font 18/SmallcapsGlow Map View 76x50 Tactical HUD 1 Map Filters NONE Filters NONE Steam 1 RUN: 6b636642-7c1a-4363-aef8-b9fb56771d02